lending/lending_fUSD_20260310
["ID","MTS","AMOUNT","RATE_DAILY","PERIOD"]
[408114315,1773150656624,-715.71,0.00019771,2]
[408114316,1773150656635,-500.0,0.00019771,2]
[408114317,1773150656646,-715.71,0.00019771,2]
[408114318,1773150656660,-500.0,0.00019771,2]
[408114319,1773150656671,-715.71,0.00019771,2]
[408114320,1773150656683,-500.0,0.00019771,2]
[408114321,1773150656694,-715.71,0.00019771,2]
[408114322,1773150656705,-715.71,0.00019771,2]
[408114323,1773150656716,-715.71,0.00019771,2]
[408114324,1773150656727,-2464.35,0.00019771,2]
[408114325,1773150656739,-2464.35,0.00019771,2]
[408114326,1773150656750,-2843.98,0.00019771,2]
[408114327,1773150656762,-2464.35,0.00019771,2]
[408114328,1773150656772,-2843.98,0.00019771,2]
[408114329,1773150656783,-2843.98,0.00019771,2]
[408114330,1773150656795,-2464.35,0.00019771,2]
[408114331,1773150656806,-2843.98,0.00019771,2]
[408114332,1773150656817,-2464.35,0.00019771,2]
[408114333,1773150656828,-2843.98,0.00019771,2]
[408114334,1773150656839,-2464.35,0.00019771,2]
[408114335,1773150656851,-563.24,0.00019771,2]
[408114336,1773150656862,-2843.98,0.00019771,2]
[408114337,1773150656873,-563.24,0.00019771,2]
[408114338,1773150656884,-500.0,0.00019771,2]
[408114339,1773150656896,-563.24,0.00019771,2]
[408114340,1773150656915,-500.0,0.00019771,2]
[408114341,1773150656926,-563.24,0.00019771,2]
[408114342,1773150656938,-500.0,0.00019771,2]
[408114343,1773150656949,-563.24,0.00019771,2]
[408114344,1773150656961,-500.0,0.00019771,2]
[408114345,1773150656973,-563.24,0.00019771,2]
[408114346,1773150656984,-500.0,0.00019771,2]
[408114347,1773150656995,-500.0,0.00019771,2]
[408114348,1773150657800,-3984.1,0.00019771,2]
[408114349,1773150657841,-3984.1,0.00019771,2]
[408114350,1773150657861,-3984.1,0.00019771,2]
[408114351,1773150657871,-3984.1,0.00019771,2]
[408114352,1773150657882,-3984.1,0.00019771,2]
[408114353,1773150657892,-1574.46,0.00019771,2]
[408114354,1773150657901,-1574.46,0.00019771,2]
[408114355,1773150657912,-1574.46,0.00019771,2]
[408114356,1773150657922,-1574.46,0.00019771,2]
[408114357,1773150657932,-1574.46,0.00019771,2]
[408114358,1773150657942,-1574.46,0.00019771,2]
[408114359,1773150657953,-3860.51,0.00019771,2]
[408114360,1773150657963,-3860.51,0.00019771,2]
[408114361,1773150657972,-3860.51,0.00019771,2]
[408114362,1773150657982,-3860.51,0.00019771,2]
[408114363,1773150657991,-3860.51,0.00019771,2]
[408114364,1773150658001,-3860.51,0.00019771,2]
[408114365,1773150658011,-1406.21,0.00019771,2]
[408114366,1773150658021,-1406.21,0.00019771,2]
[408114367,1773150658032,-1030.76,0.00019771,2]
[408114368,1773150658042,-1406.21,0.00019771,2]
[408114369,1773150658053,-1030.76,0.00019771,2]
[408114370,1773150658064,-1406.21,0.00019771,2]
[408114371,1773150658075,-1030.76,0.00019771,2]
[408114372,1773150658085,-1406.21,0.00019771,2]
[408114373,1773150658096,-1030.76,0.00019771,2]
[408114374,1773150658106,-1406.21,0.00019771,2]
[408114375,1773150658116,-1030.76,0.00019771,2]
[408114376,1773150658126,-1030.76,0.00019771,2]
[408114377,1773150658136,-819.03,0.00019771,2]
[408114378,1773150658149,-819.03,0.00019771,2]
[408114379,1773150658160,-819.03,0.00019771,2]
[408114380,1773150658170,-819.03,0.00019771,2]
[408114381,1773150658179,-819.03,0.00019771,2]
[408114382,1773150658191,-819.03,0.00019771,2]
[408114383,1773150658200,-500.0,0.00019771,2]
[408114384,1773150658210,-500.0,0.00019771,2]
[408114385,1773150658222,-500.0,0.00019771,2]
[408114386,1773150658232,-500.0,0.00019771,2]
[408114387,1773150658243,-500.0,0.00019771,2]
[408114388,1773150658252,-286.54,0.00019771,2]
[408114389,1773150658262,-500.0,0.00019771,2]
[408114390,1773150658272,-500.0,0.00019771,2]
[408114391,1773150658282,-500.0,0.00019771,2]
[408114392,1773150658292,-2494.93,0.00019771,2]
[408114393,1773150658302,-1894.97,0.00019771,2]
[408114394,1773150658312,-2494.93,0.00019771,2]
[408114395,1773150658323,-1894.97,0.00019771,2]
[408114396,1773150658335,-500.0,0.00019771,2]
[408114397,1773150658345,-2494.93,0.00019771,2]
[408114398,1773150658355,-500.0,0.00019771,2]
[408114399,1773150658364,-1894.97,0.00019771,2]
[408114400,1773150658374,-2494.93,0.00019771,2]
[408114401,1773150658384,-500.0,0.00019771,2]
[408114402,1773150658395,-1894.97,0.00019771,2]
[408114403,1773150658406,-2494.93,0.00019771,2]
[408114404,1773150658415,-1894.97,0.00019771,2]
[408114405,1773150658425,-2494.93,0.00019771,2]
[408114406,1773150658436,-1894.97,0.00019771,2]
[408114407,1773150658445,-500.0,0.00019771,2]
[408114408,1773150658454,-500.0,0.00019771,2]
[408114409,1773150658464,-500.0,0.00019771,2]
[408114410,1773150658474,-500.0,0.00019771,2]
[408114411,1773150658484,-500.0,0.00019771,2]
[408114412,1773150658494,-500.0,0.00019771,2]
[408114413,1773150658504,-500.0,0.00019771,2]
[408114414,1773150658514,-500.0,0.00019771,2]
[408114415,1773150658524,-500.0,0.00019771,2]
[408114416,1773150658534,-500.0,0.00019771,2]
[408114417,1773150658543,-500.0,0.00019771,2]
[408114418,1773150658554,-500.0,0.00019771,2]
[408114419,1773150658564,-695.97,0.00019771,2]
[408114420,1773150658574,-695.97,0.00019771,2]
[408114421,1773150658585,-695.97,0.00019771,2]
[408114422,1773150658594,-695.97,0.00019771,2]
[408114423,1773150658603,-1703.22,0.00019771,2]
[408114424,1773150658612,-695.97,0.00019771,2]
[408114425,1773150658622,-1703.22,0.00019771,2]
[408114426,1773150658631,-695.97,0.00019771,2]
[408114427,1773150658641,-1703.22,0.00019771,2]
[408114428,1773150658650,-1703.22,0.00019771,2]
[408114429,1773150658661,-1703.22,0.00019771,2]
[408114430,1773150658671,-1703.22,0.00019771,2]
[408114431,1773150658681,-504.53,0.00019771,2]
[408114432,1773150658691,-504.53,0.00019771,2]
[408114433,1773150658701,-151.0,0.00019771,2]
[408114434,1773150658711,-504.53,0.00019771,2]
[408114435,1773150658720,-504.53,0.00019771,2]
[408114436,1773150658730,-504.53,0.00019771,2]
[408114437,1773150658739,-504.53,0.00019771,2]
[408114438,1773150658749,-457.38341586,0.00019771,2]
[408114439,1773150658759,-1789.01,0.00019771,2]
[408114440,1773150658768,-1789.01,0.00019771,2]
[408114441,1773150658778,-1789.01,0.00019771,2]
[408114442,1773150658788,-1789.01,0.00019771,2]
[408114443,1773150658797,-1789.01,0.00019771,2]
[408114444,1773150658807,-151.0,0.00019771,2]
[408114445,1773150658817,-1789.01,0.00019771,2]
[408114446,1773150658826,-151.0,0.00019771,2]
[408114447,1773150658836,-722.22,0.00019771,2]
[408114448,1773150658846,-722.22,0.00019771,2]
[408114449,1773150658856,-722.22,0.00019771,2]
[408114450,1773150658865,-722.22,0.00019771,2]
[408114451,1773150658876,-722.22,0.00019771,2]
[408114452,1773150658885,-722.22,0.00019771,2]
[408114453,1773150658895,-1279.35,0.00019771,2]
[408114454,1773150658906,-1279.35,0.00019771,2]
[408114455,1773150658915,-1279.35,0.00019771,2]
[408114456,1773150658925,-1279.35,0.00019771,2]
[408114457,1773150658935,-1279.35,0.00019771,2]
[408114458,1773150658944,-1279.35,0.00019771,2]
[408114459,1773150658954,-1864.0,0.00019771,2]
[408114460,1773150658964,-1864.0,0.00019771,2]
[408114461,1773150658974,-1864.0,0.00019771,2]
[408114462,1773150658983,-1864.0,0.00019771,2]
[408114463,1773150658992,-1864.0,0.00019771,2]
[408114464,1773150659001,-566.6,0.00019771,2]
[408114465,1773150659011,-1864.0,0.00019771,2]
[408114466,1773150659021,-566.6,0.00019771,2]
[408114467,1773150659030,-518.26,0.00019771,2]
[408114468,1773150659040,-566.6,0.00019771,2]
[408114469,1773150659049,-518.26,0.00019771,2]
[408114470,1773150659059,-566.6,0.00019771,2]
[408114471,1773150659068,-518.26,0.00019771,2]
[408114472,1773150659078,-566.6,0.00019771,2]
[408114473,1773150659088,-518.26,0.00019771,2]
[408114474,1773150659098,-566.6,0.00019771,2]
[408114475,1773150659107,-518.26,0.00019771,2]
[408114476,1773150659117,-518.26,0.00019771,2]
[408114477,1773150659127,-1251.14,0.00019771,2]
[408114478,1773150659136,-1251.14,0.00019771,2]
[408114479,1773150659147,-1251.14,0.00019771,2]
[408114480,1773150659160,-1251.14,0.00019771,2]
[408114481,1773150659170,-1251.14,0.00019771,2]
[408114482,1773150659179,-11323.54,0.00019771,2]
[408114483,1773150659188,-1251.14,0.00019771,2]
[408114484,1773150659198,-11323.54,0.00019771,2]
[408114485,1773150659207,-11323.54,0.00019771,2]
[408114486,1773150659217,-11323.54,0.00019771,2]
[408114487,1773150659227,-11323.54,0.00019771,2]
[408114488,1773150659237,-880.87,0.00019771,2]
[408114489,1773150659247,-11323.54,0.00019771,2]
[408114490,1773150659256,-880.87,0.00019771,2]
[408114491,1773150659265,-880.87,0.00019771,2]
[408114492,1773150659275,-880.87,0.00019771,2]
[408114493,1773150659284,-880.87,0.00019771,2]
[408114494,1773150659294,-880.87,0.00019771,2]
[408114495,1773150659303,-2518.6,0.00019771,2]
[408114496,1773150659313,-2518.6,0.00019771,2]
[408114497,1773150659322,-2518.6,0.00019771,2]
[408114498,1773150659332,-2518.6,0.00019771,2]
[408114499,1773150659342,-2518.6,0.00019771,2]
[408114500,1773150659351,-2518.6,0.00019771,2]
[408114501,1773150659360,-828.57,0.00019771,2]
[408114502,1773150659370,-828.57,0.00019771,2]
[408114503,1773150659380,-828.57,0.00019771,2]
[408114504,1773150659390,-828.57,0.00019771,2]
[408114505,1773150659400,-828.57,0.00019771,2]
[408114506,1773150659412,-828.57,0.00019771,2]
[408114507,1773150659421,-3620.37,0.00019771,2]
[408114508,1773150659431,-3620.37,0.00019771,2]
[408114509,1773150659441,-3620.37,0.00019771,2]
[408114510,1773150659451,-3620.37,0.00019771,2]
[408114511,1773150659461,-3620.37,0.00019771,2]
[408114512,1773150659470,-3620.37,0.00019771,2]
[408114513,1773150659480,-401.53720326,0.00019771,2]
[408114514,1773150659490,-1484.8,0.00019771,2]
[408114515,1773150659500,-1484.8,0.00019771,2]
[408114516,1773150659510,-1484.8,0.00019771,2]
[408114517,1773150659520,-1484.8,0.00019771,2]
[408114518,1773150659530,-1484.8,0.00019771,2]
[408114519,1773150659540,-1484.8,0.00019771,2]
[408114520,1773150659550,-762.54,0.00019771,2]
[408114521,1773150659560,-762.54,0.00019771,2]
[408114522,1773150659570,-762.54,0.00019771,2]
[408114523,1773150659580,-762.54,0.00019771,2]
[408114524,1773150659590,-762.54,0.00019771,2]
[408114525,1773150659600,-762.54,0.00019771,2]
[408114526,1773150659610,-3127.71,0.00019771,2]
[408114527,1773150659619,-3127.71,0.00019771,2]
[408114528,1773150659629,-3127.71,0.00019771,2]
[408114529,1773150659639,-3127.71,0.00019771,2]
[408114530,1773150659648,-3127.71,0.00019771,2]
[408114531,1773150659660,-3127.71,0.00019771,2]
[408114532,1773150659669,-3508.02,0.00019771,2]
[408114533,1773150659678,-3508.02,0.00019771,2]
[408114534,1773150659687,-3508.02,0.00019771,2]
[408114535,1773150659697,-3508.02,0.00019771,2]
[408114536,1773150659706,-3508.02,0.00019771,2]
[408114537,1773150659715,-3508.02,0.00019771,2]
[408114538,1773150659725,-500.0,0.00019771,2]
[408114539,1773150659735,-500.0,0.00019771,2]
[408114540,1773150659744,-500.0,0.00019771,2]
[408114541,1773150659754,-500.0,0.00019771,2]
[408114542,1773150659763,-500.0,0.00019771,2]
[408114543,1773150659774,-500.0,0.00019771,2]
[408114544,1773150659783,-500.0,0.00019771,2]
[408114545,1773150659793,-500.0,0.00019771,2]
[408114546,1773150659803,-266.05723124,0.00019771,2]
[408114547,1773150659812,-1047.7,0.00019771,2]
[408114548,1773150659822,-1047.7,0.00019771,2]
[408114549,1773150659832,-1047.7,0.00019771,2]
[408114550,1773150659842,-1047.7,0.00019771,2]
[408114551,1773150659851,-1047.7,0.00019771,2]
[408114552,1773150659861,-1047.7,0.00019771,2]
[408114553,1773150659871,-500.0,0.00019771,2]
[408114554,1773150659881,-500.0,0.00019771,2]
[408114555,1773150659891,-500.0,0.00019771,2]
[408114556,1773150659901,-500.0,0.00019771,2]
[408114557,1773150659914,-500.0,0.00019771,2]
[408114558,1773150659923,-500.0,0.00019771,2]
[408114559,1773150659933,-151.0,0.00019772,2]
[408114560,1773150659943,-151.0,0.00019772,2]
[408114561,1773150659954,-188.673291,0.00019772,2]
[408114562,1773150659964,-151.0,0.00019772,2]
[408114563,1773150659974,-151.0,0.00019772,2]
[408114564,1773150659984,-151.0,0.00019772,2]
[408114565,1773150659993,-199.730346,0.00019772,2]
[408114566,1773150660003,-151.0,0.00019772,2]
[408114567,1773150660012,-151.0,0.00019772,2]
[408114568,1773150660022,-35195.85972269,0.00019772,2]
[408114569,1773150660981,-1062.12537916,0.00016089,2]
[408114570,1773150660990,-2149.4,0.00019726,2]
[408114571,1773150661000,-567.77,0.00019726,2]
[408114572,1773150661009,-2782.5,0.00019726,2]
[408114573,1773150661019,-2149.4,0.00019726,2]
[408114574,1773150661028,-567.77,0.00019726,2]
[408114575,1773150661038,-2782.5,0.00019726,2]
[408114576,1773150661047,-2149.4,0.00019726,2]
[408114577,1773150661057,-567.77,0.00019726,2]
[408114578,1773150661066,-2782.5,0.00019726,2]
[408114579,1773150661075,-2149.4,0.00019726,2]
[408114580,1773150661085,-567.77,0.00019726,2]
[408114581,1773150661095,-2782.5,0.00019726,2]
[408114582,1773150661104,-2149.4,0.00019726,2]
[408114583,1773150661114,-567.77,0.00019726,2]
[408114584,1773150661123,-2149.4,0.00019726,2]
[408114585,1773150661133,-1281.11662083,0.00019726,2]
[408114586,1773150661145,-647.05801873,0.00019726,2]
[408114587,1773150661163,-505.19818283,0.00019726,2]
[408114588,1773150661190,-349.12717761,0.00019726,2]
[408114589,1773150661199,-567.77,0.00019726,2]
[408114590,1773150661209,-2782.5,0.00019726,2]
[408114591,1773150661218,-567.77,0.00019726,2]
[408114592,1773150661230,-2782.5,0.00019726,2]
[408114593,1773150661239,-2782.5,0.00019726,2]
[408114594,1773150661248,-2149.4,0.00019771,2]
[408114595,1773150661258,-2149.4,0.00019771,2]
[408114596,1773150661268,-567.77,0.00019771,2]
[408114597,1773150661278,-2149.4,0.00019771,2]
[408114598,1773150661288,-567.77,0.00019771,2]
[408114599,1773150661299,-290393.93555,0.00019772,2]
[408114600,1773150661311,-1581.91527348,0.00019772,2]
[408114601,1773150661326,-1135.96567531,0.00019771,2]
[408114602,1773150661337,-405.90898067,0.00019771,2]
[408114603,1773150661398,-347.053942,0.00019771,2]
[408114604,1773150661711,-6167.54974248,0.00017663,2]
[408114605,1773150661736,-346.22460377,0.00017663,2]
[408114606,1773150661745,-893.57140202,0.00019771,2]
[408114607,1773150661754,-2149.4,0.00019771,2]
[408114608,1773150661763,-567.77,0.00019771,2]
[408114609,1773150661772,-1171.33114622,0.00019771,2]
[408114610,1773150661783,-1611.16885378,0.00019771,2]
[408114611,1773150661792,-297.78471799,0.00019771,2]
[408114612,1773150661804,-1851.61528201,0.00019771,2]
[408114613,1773150661813,-567.77,0.00019771,2]
[408114614,1773150661823,-1632.20049607,0.00019771,2]
[408114615,1773150661834,-1150.29950393,0.00019771,2]
[408114616,1773150661843,-2149.4,0.00019771,2]
[408114617,1773150661852,-567.77,0.00019771,2]
[408114618,1773150661861,-89.0484846,0.00019771,2]
[408114619,1773150662382,-2693.4515154,0.00019771,2]
[408114620,1773150662393,-567.77,0.00019771,2]
[408114621,1773150662402,-2782.5,0.00019771,2]
[408114622,1773150662413,-2782.5,0.00019771,2]
[408114623,1773150662422,-189.09190772,0.00019772,2]
[408114624,1773150662435,-494.61771879,0.00019772,2]
[408114625,1773150662446,-651.98542784,0.00019772,2]
[408114626,1773150662519,-7629.51241606,0.00019772,2]
[408114627,1773150662531,-34901.49999999,0.00019772,2]
[408114628,1773150662542,-20275.9999999,0.00019772,2]
[408114629,1773150662554,-2774.99909,0.00019772,2]
[408114630,1773150662564,-11985.84339735,0.00019772,2]
[408114631,1773151161474,3268.00003066,0.00013,2]
[408114632,1773151209947,165.33244395,0.00014159,2]
[408114633,1773151295912,1708.57,0.000123,2]
[408114634,1773151308312,1855.54,0.000123,2]
[408114635,1773151318924,891.02,0.000123,2]
[408114636,1773151330517,891.02,0.000123,2]
[408114637,1773151342257,1112.34517937,0.000123,2]
[408114638,1773151342279,669.73482063,0.000123,2]
[408114639,1773151355013,9330.26517937,9.5e-05,3]
[408114640,1773151355035,10000.0,9.5e-05,3]
[408114641,1773151355066,669.73482063,9.5e-05,3]
[408114642,1773151472479,604.85,0.0002,120]
[408114643,1773151507272,360.0,0.0001938,120]
[408114645,1773151579625,2614.7,0.00014157,2]
[408114648,1773151637989,658.23244585,9.157e-05,2]
[408114649,1773151809344,216.0,0.0001938,120]
[408114659,1773151831897,-290.05642929,0.00015,30]
[408114660,1773151831908,-209.94357071,0.00015,30]
[408114661,1773151831918,-380.61742386,0.00015046,2]
[408114662,1773151831927,-250.0,0.00015093,2]
[408114663,1773151831937,-32.10431587,0.00015185,2]
[408114664,1773151831948,-130.1967363,0.00015185,2]
[408114665,1773151831958,-276.0,0.00015185,2]
[408114666,1773151831967,-190.41638026,0.00015208,2]
[408114667,1773151831986,-59.58361974,0.00015208,2]
[408114668,1773151831995,-205.686074,0.00015285,7]
[408114669,1773151832005,-300.0,0.00015285,2]
[408114670,1773151832014,-208.36416367,0.00015285,2]
[408114671,1773151832024,-316.70009739,0.00015314,2]
[408114672,1773151832034,-152.82,0.00015338,2]
[408114673,1773151832044,-288.52,0.00015382,2]
[408114674,1773151832056,-171.87038139,0.000157,2]
[408114675,1773151832067,-1200.0,0.0001571,2]
[408114676,1773151832079,-1200.0,0.00015711,2]
[408114678,1773151832089,-300.0,0.00015711,2]
[408114680,1773151832098,-300.0,0.00015711,2]
[408114682,1773151832108,-10227.42,0.00015712,2]
[408114684,1773151832118,-1986.3,0.00015842,2]
[408114686,1773151832128,-1519.0,0.00015856,2]
[408114688,1773151832138,-603.0,0.00015887,2]
[408114690,1773151832148,-1000.0,0.00015991,2]
[408114692,1773151832157,-384.63702856,0.00016068,2]
[408114694,1773151832168,-1394.36297144,0.00016068,2]
[408114696,1773151832178,-166.66,0.00016084,2]
[408114698,1773151832187,-550.0,0.00016089,2]
[408114700,1773151832197,-500.0,0.0001609,2]
[408114702,1773151832206,-500.0,0.0001609,2]
[408114704,1773151832215,-500.0,0.0001609,2]
[408114706,1773151832225,-500.0,0.0001609,2]
[408114709,1773151832235,-500.0,0.0001609,2]
[408114712,1773151832244,-500.0,0.0001609,2]
[408114715,1773151832253,-500.0,0.0001609,2]
[408114717,1773151832262,-500.0,0.0001609,2]
[408114719,1773151832271,-500.0,0.0001609,2]
[408114721,1773151832281,-500.0,0.0001609,2]
[408114723,1773151832290,-500.0,0.0001609,2]
[408114733,1773151832368,-1671.0,0.000161,2]
[408114735,1773151832380,-152.82,0.0001619,2]
[408114737,1773151832390,-5010.76747959,0.000162,5]
[408114738,1773151832400,-362.58490829,0.00016285,2]
[408114740,1773151832410,-166.57,0.00016331,2]
[408114742,1773151832419,-500.0,0.00016438,2]
[408114744,1773151832428,-500.0,0.00016438,2]
[408114745,1773151832437,-500.0,0.00016438,2]
[408114746,1773151832447,-500.0,0.00016438,2]
[408114747,1773151832456,-412.36,0.00016438,2]
[408114748,1773151832465,-5264.65,0.0001647,2]
[408114749,1773151832475,-500.0,0.000165,2]
[408114750,1773151832484,-977.46197326,0.000165,2]
[408114751,1773151832493,-300.0,0.000165,2]
[408114752,1773151832502,-600.0,0.000165,2]
[408114753,1773151832514,-250.0,0.000165,2]
[408114754,1773151832524,-300.0,0.000165,2]
[408114755,1773151832533,-600.0,0.000165,2]
[408114756,1773151832542,-166.66,0.00016615,2]
[408114757,1773151832551,-162.30105217,0.00016713,2]
[408114758,1773151832561,-4953.85469342,0.00016813,2]
[408114759,1773151832570,-200.50915792,0.00016813,2]
[408114760,1773151832579,-2398.01532275,0.00016813,2]
[408114761,1773151832589,-300.0,0.00016813,2]
[408114762,1773151832598,-250.92685591,0.00016813,2]
[408114763,1773151832607,-2832.84558435,0.00016813,2]
[408114764,1773151832616,-195.0,0.00016813,2]
[408114765,1773151832625,-6855.99134178,0.000169,2]
[408114766,1773151832635,-151.52351438,0.000169,2]
[408114767,1773151832644,-3624.73828494,0.000169,2]
[408114768,1773151832653,-500.37976244,0.00016973,2]
[408114769,1773151832662,-500.0,0.00016973,2]
[408114770,1773151832671,-500.0,0.00016973,2]
[408114771,1773151832679,-500.0,0.00016973,2]
[408114772,1773151832690,-500.0,0.00016973,2]
[408114773,1773151832699,-500.0,0.00016973,2]
[408114774,1773151832708,-500.0,0.00016973,2]
[408114775,1773151832717,-500.0,0.00016973,2]
[408114776,1773151832726,-367.07901164,0.00016973,2]
[408114777,1773151832735,-500.0,0.00016973,2]
[408114778,1773151832744,-77.95540513,0.0001699,2]
[408114779,1773151832756,-73.04459487,0.0001699,2]
[408114780,1773151832766,-216.16485696,0.0001699,2]
[408114781,1773151832775,-5000.0,0.00016998,2]
[408114782,1773151832784,-500.0,0.00016999,2]
[408114783,1773151832793,-500.0,0.00016999,2]
[408114784,1773151832802,-199.07111286,0.00016999,2]
[408114785,1773151832812,-500.0,0.00016999,2]
[408114786,1773151832820,-500.0,0.00016999,2]
[408114787,1773151832830,-500.0,0.00016999,2]
[408114788,1773151832839,-481.88473631,0.00016999,2]
[408114789,1773151832848,-500.0,0.00016999,2]
[408114790,1773151832858,-500.0,0.00016999,2]
[408114791,1773151832867,-500.0,0.00016999,2]
[408114792,1773151832877,-500.0,0.00016999,2]
[408114793,1773151832887,-500.0,0.00016999,2]
[408114794,1773151832896,-500.0,0.00016999,2]
[408114795,1773151832905,-500.0,0.00016999,2]
[408114796,1773151832914,-500.0,0.00016999,2]
[408114797,1773151832923,-500.0,0.00016999,2]
[408114798,1773151832931,-500.0,0.00016999,2]
[408114799,1773151832940,-500.0,0.00016999,2]
[408114800,1773151832949,-500.0,0.00016999,2]
[408114801,1773151832958,-500.0,0.00016999,2]
[408114802,1773151832967,-500.0,0.00016999,2]
[408114803,1773151832976,-500.0,0.00016999,2]
[408114804,1773151832985,-500.0,0.00016999,2]
[408114805,1773151832994,-500.0,0.00016999,2]
[408114806,1773151833003,-500.0,0.00016999,2]
[408114807,1773151833012,-359.91148345,0.00016999,2]
[408114808,1773151833024,-140.08851655,0.00016999,2]
[408114809,1773151833033,-500.0,0.00016999,2]
[408114810,1773151833043,-500.0,0.00016999,2]
[408114811,1773151833052,-500.0,0.00016999,2]
[408114812,1773151833062,-500.0,0.00016999,2]
[408114813,1773151833071,-500.0,0.00016999,2]
[408114814,1773151833080,-500.0,0.00016999,2]
[408114815,1773151833090,-500.0,0.00016999,2]
[408114816,1773151833099,-500.0,0.00016999,2]
[408114817,1773151833107,-500.0,0.00016999,2]
[408114818,1773151833117,-500.0,0.00016999,2]
[408114819,1773151833127,-500.0,0.00016999,2]
[408114820,1773151833139,-500.0,0.00016999,2]
[408114821,1773151833148,-500.0,0.00016999,2]
[408114822,1773151833156,-500.0,0.00016999,2]
[408114823,1773151833165,-500.0,0.00016999,2]
[408114824,1773151833175,-500.0,0.00016999,2]
[408114825,1773151833184,-500.0,0.00016999,2]
[408114826,1773151833193,-475.06319119,0.00016999,2]
[408114827,1773151833202,-500.0,0.00016999,2]
[408114828,1773151833211,-500.0,0.00016999,2]
[408114829,1773151833220,-500.0,0.00016999,2]
[408114830,1773151833230,-500.0,0.00016999,2]
[408114831,1773151833239,-500.0,0.00016999,2]
[408114832,1773151833248,-500.0,0.00016999,2]
[408114833,1773151833257,-500.0,0.00016999,2]
[408114834,1773151833267,-500.0,0.00016999,2]
[408114835,1773151833276,-500.0,0.00016999,2]
[408114836,1773151833285,-500.0,0.00016999,2]
[408114837,1773151833295,-629.54718477,0.00016999,2]
[408114838,1773151833304,-629.54718477,0.00016999,2]
[408114839,1773151833313,-629.54718477,0.00016999,2]
[408114840,1773151833322,-629.54718477,0.00016999,2]
[408114841,1773151833331,-629.54718477,0.00016999,2]
[408114842,1773151833340,-629.54718477,0.00016999,2]
[408114843,1773151833350,-629.54718477,0.00016999,2]
[408114844,1773151833359,-629.54718477,0.00016999,2]
[408114845,1773151833369,-629.54718477,0.00016999,2]
[408114846,1773151833379,-629.54718477,0.00016999,2]
[408114847,1773151833388,-629.54718477,0.00016999,2]
[408114848,1773151833398,-629.54718477,0.00016999,2]
[408114849,1773151833407,-629.54718477,0.00016999,2]
[408114850,1773151833416,-629.54718477,0.00016999,2]
[408114851,1773151833426,-629.54718477,0.00016999,2]
[408114852,1773151833435,-629.54718477,0.00016999,2]
[408114853,1773151833445,-629.54718477,0.00016999,2]
[408114854,1773151833454,-629.54718477,0.00016999,2]
[408114855,1773151833463,-629.54718477,0.00016999,2]
[408114856,1773151833473,-629.54718477,0.00016999,2]
[408114857,1773151833482,-629.54718477,0.00016999,2]
[408114858,1773151833491,-629.54718477,0.00016999,2]
[408114859,1773151833501,-629.54718477,0.00016999,2]
[408114860,1773151833512,-629.54718477,0.00016999,2]
[408114861,1773151833522,-629.54718477,0.00016999,2]
[408114862,1773151833532,-629.54718477,0.00016999,2]
[408114863,1773151833541,-629.54718477,0.00016999,2]
[408114864,1773151833551,-629.54718477,0.00016999,2]
[408114865,1773151833560,-629.54718477,0.00016999,2]